Workbook

Sheet Cálculo
A1: Verificação dos Esforços Resistentes de Compressão de Cantoneiras de Abas iguais
A2: NRd= | B2: =IF(E15<=200,ROUND(Compressão!B28,2),"-") -> 79.88 | C2: kN | D2: Dupla
A3: NRd= | B3: =IF(E16<=200,ROUND(Compressão!B30,2),"-") -> 39.8 | C3: kN | D3: Simples
A5: Perfil L: | B5: 19 | D5: E= | E5: 200000 | F5: MPa
A6: Aço: | B6: 1 | D6: G= | E6: 77000 | F6: MPa
A7: fy= | B7: =IF(B6=1,fy!B2,IF(B6=2,fy!B3,fy!B4)) -> 250 | C7: MPa | D7: ga1= | E7: 1.1 | F7: Obs: Ações normais
A8: fu= | B8: =IF(B6=1,fy!C2,IF(B6=2,fy!C3,fy!C4)) -> 400 | C8: MPa | E8: Comprimentos:
A9: b= | B9: 50.8 | C9: mm | D9: Lx= | E9: 2.4 | F9: m (dupla)
A10: t= | B10: 6.35 | C10: mm | D10: Lx1= | E10: 1.715 | F10: m (simples)
A11: A= | B11: 6.06 | C11: cm2 | D11: k= | E11: =0.5*rz/rx -> 0.3193548387
A12: Ix= | B12: 14.6 | C12: cm4 | D12: Lx10= | E12: =ROUND(E9/E17,3) -> 0.6
A13: Wx= | B13: 4.1 | C13: cm3 | D13: Kx= | E13: 1 | F13: coef flamb (dupla)
A14: rx= | B14: 1.55 | C14: cm | D14: Kx1= | E14: 1 | F14: coef flamb (simples)
A15: rz= | B15: 0.99 | C15: cm | D15: KL/r= | E15: =Kx*Lx*100/rx -> 154.8387097 | F15: dupla | G15: =IF(E15>200,"Erro! - Esbeltez superior à limite","-") -> -
A16: x= | B16: 1.5 | C16: cm | D16: KL/r= | E16: =Kx_1*Lx_1*100/rz -> 173.2323232 | F16: simples | G16: =IF(E16>200,"Erro! - Esbeltez superior à limite","-") -> -
D17: n = | E17: =MAX(ROUNDUP(1/E11,0),2) -> 4 | F17: espaçadores NBR 8800-5.3.4.2
D18: n = | E18: =ROUNDDOWN(Lx/Lx_1,0) -> 1 | F18: espaçadores calculados | I18: b (mm) | J18: t (mm) | K18: Lx (m) | L18: Lx1 (m) | M18: NRd Dupla (kN) | N18: NRd Simples (kN) | O18: KLx/rx Dupla | P18: KLz/rz Simples
I19: =b -> 50.8 | J19: =t -> 6.35 | K19: =Lx -> 2.4 | L19: =Lx_1 -> 1.715 | M19: =B2 -> 79.88 | N19: =B3 -> 39.8 | O19: =E15 -> 154.8387097 | P19: =E16 -> 173.2323232
Q20: Relação Lx/Lx1
I21: 50.8 | J21: 6.35 | K21: 1.2 | L21: 0.116 | M21: 200.53 | N21: 100.13 | O21: 77.41935484 | P21: 11.71717172 | Q21: =K21/L21 -> 10.34482759
I22: 50.8 | J22: 6.35 | K22: 1.4 | L22: 0.38 | M22: 179.05 | N22: 89.39 | O22: 90.32258065 | P22: 38.38383838 | Q22: =K22/L22 -> 3.684210526
I23: 50.8 | J23: 6.35 | K23: 1.6 | L23: 0.647 | M23: 156.73 | N23: 78.37 | O23: 103.2258065 | P23: 65.35353535 | Q23: 2.472952087
I24: 50.8 | J24: 6.35 | K24: 1.8 | L24: 0.916 | M24: 134.97 | N24: 67.35 | O24: 116.1290323 | P24: 92.52525253 | Q24: 1.965065502
I25: 50.8 | J25: 6.35 | K25: 2 | L25: 1.18 | M25: 114.31 | N25: 57.02 | O25: 129.0322581 | P25: 119.1919192 | Q25: 1.694915254
I26: 50.8 | J26: 6.35 | K26: 2.2 | L26: 1.446 | M26: 95.03 | N26: 47.52 | O26: 141.9354839 | P26: 146.0606061 | Q26: 1.521438451
I27: 50.8 | J27: 6.35 | K27: 2.4 | L27: 1.715 | M27: 79.88 | N27: 39.8 | O27: 154.8387097 | P27: 173.2323232 | Q27: 1.39941691
I28: 50.8 | J28: 6.35 | K28: 2.6 | L28: 1.976 | M28: 68.04 | N28: 34.02 | O28: 167.7419355 | P28: 199.5959596 | Q28: 1.315789474

Sheet Cantoneira
A1: b | C1: Peso Nominal | D1: t | F1: Área | G1: Ix=Iy | H1: Wx=Wy | I1: rx=ry | J1: rz mín. | K1: x
A2: pol | B2: mm | C2: kg/m | D2: pol | E2: mm | F2: cm2 | G2: cm4 | H2: cm3 | I2: cm | J2: cm | K2: cm
A3: 1/2” | B3: 12.7 | C3: 0.55 | D3: 1/8” | E3: 3.18 | F3: 0.7 | G3: 0.1 | H3: 0.11 | I3: 0.37 | J3: 0.25 | K3: 0.43
A4: 5/8” | B4: 15.88 | C4: 0.71 | D4: 1/8” | E4: 3.18 | F4: 0.9 | G4: 0.2 | H4: 0.19 | I4: 0.47 | J4: 0.32 | K4: 0.51
A5: 3/4” | B5: 19.05 | C5: 0.87 | D5: 1/8” | E5: 3.18 | F5: 1.11 | G5: 0.36 | H5: 0.27 | I5: 0.57 | J5: 0.38 | K5: 0.59
A6: 7/8” | B6: 22.2 | C6: 1.04 | D6: 1/8” | E6: 3.18 | F6: 1.32 | G6: 0.58 | H6: 0.38 | I6: 0.66 | J6: 0.46 | K6: 0.66
A7: 1” x 1” x 1/8" | B7: 25.4 | C7: 1.19 | D7: 1/8” | E7: 3.18 | F7: 1.48 | G7: 0.83 | H7: 0.49 | I7: 0.79 | J7: 0.48 | K7: 0.76
A8: 1” x 1” x 3/16" | B8: 25.4 | C8: 1.73 | D8: 3/16” | E8: 4.76 | F8: 2.19 | G8: 1.25 | H8: 0.66 | I8: 0.76 | J8: 0.48 | K8: 0.81
A9: 1” x 1” x 1/4" | B9: 25.4 | C9: 2.22 | D9: 1/4” | E9: 6.35 | F9: 2.84 | G9: 1.66 | H9: 0.98 | I9: 0.76 | J9: 0.48 | K9: 0.86
A10: 1.1/4”x1.1/4”x1/8" | B10: 31.75 | C10: 1.5 | D10: 1/8” | E10: 3.18 | F10: 1.93 | G10: 1.67 | H10: 0.82 | I10: 0.97 | J10: 0.64 | K10: 0.89
A11: 1.1/4”x1.1/4”x3/16 | B11: 31.75 | C11: 2.2 | D11: 3/16” | E11: 4.76 | F11: 2.77 | G11: 2.5 | H11: 1.15 | I11: 0.97 | J11: 0.61 | K11: 0.97
A12: 1.1/4”x1.1/4”x1/4" | B12: 31.75 | C12: 2.86 | D12: 1/4” | E12: 6.35 | F12: 3.62 | G12: 3.33 | H12: 1.47 | I12: 0.94 | J12: 0.61 | K12: 1.02
A13: 1.1/2”x1.1/2”x1/8" | B13: 38.1 | C13: 1.83 | D13: 1/8” | E13: 3.18 | F13: 2.32 | G13: 3.33 | H13: 1.15 | I13: 1.17 | J13: 0.76 | K13: 1.07
A14: 1.1/2”x1.1/2”x3/16 | B14: 38.1 | C14: 2.68 | D14: 3/16” | E14: 4.76 | F14: 3.42 | G14: 4.58 | H14: 1.64 | I14: 1.17 | J14: 0.74 | K14: 1.12
A15: 1.1/2”x1.1/2”x1/4" | B15: 38.1 | C15: 3.48 | D15: 1/4” | E15: 6.35 | F15: 4.45 | G15: 5.83 | H15: 2.13 | I15: 1.15 | J15: 0.74 | K15: 1.19
A16: 1.3/4”x1.3/4”x1/8" | B16: 44.45 | C16: 2.14 | D16: 1/8” | E16: 3.18 | F16: 2.71 | G16: 5.41 | H16: 1.64 | I16: 1.4 | J16: 0.89 | K16: 1.22
A17: 1.3/4”x1.3/4”x3/16 | B17: 44.45 | C17: 3.15 | D17: 3/16” | E17: 4.76 | F17: 4 | G17: 7.5 | H17: 2.3 | I17: 1.37 | J17: 0.89 | K17: 1.3
A18: 1.3/4”x1.3/4”x1/4" | B18: 44.45 | C18: 4.12 | D18: 1/4” | E18: 6.35 | F18: 5.22 | G18: 9.57 | H18: 3.13 | I18: 1.35 | J18: 0.86 | K18: 1.35
A19: 2” x 2” x 1/8" | B19: 50.8 | C19: 2.46 | D19: 1/8” | E19: 3.18 | F19: 3.1 | G19: 7.91 | H19: 2.13 | I19: 1.6 | J19: 1.02 | K19: 1.4
A20: 2” x 2” x 3/16" | B20: 50.8 | C20: 3.63 | D20: 3/16” | E20: 4.76 | F20: 4.58 | G20: 11.7 | H20: 3.13 | I20: 1.58 | J20: 1.02 | K20: 1.45
A21: 2” x 2” x 1/4" | B21: 50.8 | C21: 4.74 | D21: 1/4” | E21: 6.35 | F21: 6.06 | G21: 14.6 | H21: 4.1 | I21: 1.55 | J21: 0.99 | K21: 1.5
A22: 2” x 2” x 5/16" | B22: 50.8 | C22: 5.83 | D22: 5/16” | E22: 7.94 | F22: 7.42 | G22: 17.5 | H22: 4.91 | I22: 1.53 | J22: 0.99 | K22: 1.55
A23: 2” x 2” x 3/8" | B23: 50.8 | C23: 6.99 | D23: 3/8” | E23: 9.52 | F23: 8.76 | G23: 20 | H23: 5.73 | I23: 1.5 | J23: 0.99 | K23: 1.63
A24: 2.1/2”x2.1/2”x3/16" | B24: 63.5 | C24: 4.57 | D24: 3/16” | E24: 4.76 | F24: 5.8 | G24: 23 | H24: 4.91 | I24: 1.98 | J24: 1.24 | K24: 1.75
A25: 2.1/2”x2.1/2”x1/4" | B25: 63.5 | C25: 6.1 | D25: 1/4” | E25: 6.35 | F25: 7.67 | G25: 29 | H25: 6.4 | I25: 1.96 | J25: 1.24 | K25: 1.83
A26: 2.1/2”x2.1/2”x5/16" | B26: 63.5 | C26: 7.44 | D26: 5/16” | E26: 7.94 | F26: 9.48 | G26: 35 | H26: 7.87 | I26: 1.93 | J26: 1.24 | K26: 1.88
A27: 2.1/2”x2.1/2”x3/8" | B27: 63.5 | C27: 8.78 | D27: 3/8” | E27: 9.52 | F27: 11.16 | G27: 41 | H27: 9.35 | I27: 1.91 | J27: 1.22 | K27: 1.93
A28: 3” x 3” x 3/16" | B28: 76.2 | C28: 5.52 | D28: 3/16” | E28: 4.76 | F28: 7.03 | G28: 40 | H28: 7.21 | I28: 2.39 | J28: 1.5 | K28: 2.08
A29: 3” x 3” x 1/4" | B29: 76.2 | C29: 7.29 | D29: 1/4” | E29: 6.35 | F29: 9.29 | G29: 50 | H29: 9.5 | I29: 2.36 | J29: 1.5 | K29: 2.13
A30: 3” x 3” x 5/16" | B30: 76.2 | C30: 9.07 | D30: 5/16” | E30: 7.94 | F30: 11.48 | G30: 62 | H30: 11.6 | I30: 2.34 | J30: 1.5 | K30: 2.21
A31: 3” x 3” x 3/8" | B31: 76.2 | C31: 10.71 | D31: 3/8” | E31: 9.52 | F31: 13.61 | G31: 75 | H31: 13.6 | I31: 2.31 | J31: 1.47 | K31: 2.26
A32: 3” x 3” x 1/2" | B32: 76.2 | C32: 14 | D32: 1/2” | E32: 12.7 | F32: 17.74 | G32: 91 | H32: 18 | I32: 2.29 | J32: 1.47 | K32: 2.36
A33: 3.1/2”x3.1/2”x1/4" | B33: 88.9 | C33: 8.56 | D33: 1/4” | E33: 6.35 | F33: 10.9 | G33: 83.7 | H33: 13 | I33: 2.77 | J33: 1.76 | K33: 2.46
A34: 3.1/2”x3.1/2”x5/16" | B34: 88.9 | C34: 10.59 | D34: 5/16” | E34: 7.94 | F34: 13.5 | G34: 102 | H34: 16 | I34: 2.75 | J34: 1.75 | K34: 2.52
A35: 3.1/2”x3.1/2”x3/8" | B35: 88.9 | C35: 12.58 | D35: 3/8” | E35: 9.52 | F35: 16 | G35: 121 | H35: 19.2 | I35: 2.75 | J35: 1.75 | K35: 2.58
A36: 4” x 9,81 | B36: 101.6 | C36: 9.81 | D36: 1/4” | E36: 6.35 | F36: 12.51 | G36: 125 | H36: 16.4 | I36: 3.17 | J36: 2 | K36: 2.77
A37: 4” x 12,19 | B37: 101.6 | C37: 12.19 | D37: 5/16” | E37: 7.94 | F37: 15.48 | G37: 154 | H37: 21.3 | I37: 3.15 | J37: 2 | K37: 2.84
A38: 4” x 14,57 | B38: 101.6 | C38: 14.57 | D38: 3/8” | E38: 9.52 | F38: 18.45 | G38: 183 | H38: 24.6 | I38: 3.12 | J38: 2 | K38: 2.9
A39: 4” x 16,8 | B39: 101.6 | C39: 16.8 | D39: 7/16” | E39: 11.11 | F39: 21.35 | G39: 208 | H39: 29.5 | I39: 3.12 | J39: 1.98 | K39: 2.95
A40: 4” x 19,03 | B40: 101.6 | C40: 19.03 | D40: 1/2” | E40: 12.7 | F40: 24.19 | G40: 233 | H40: 32.8 | I40: 3.1 | J40: 1.98 | K40: 3
A41: 5” x 12,34 | B41: 127 | C41: 12.34 | D41: 1/4” | E41: 6.35 | F41: 15.73 | G41: 251.63 | H41: 27.09 | I41: 4 | J41: 2.53 | K41: 3.41
A42: 5” x 15,31 | B42: 127 | C42: 15.31 | D42: 5/16” | E42: 7.94 | F42: 19.5 | G42: 308 | H42: 33.4 | I42: 3.97 | J42: 2.53 | K42: 3.47
A43: 5” x 18,3 | B43: 127 | C43: 18.3 | D43: 3/8” | E43: 9.52 | F43: 23.29 | G43: 362 | H43: 39.5 | I43: 3.94 | J43: 2.51 | K43: 3.53
A44: 5” x 23,52 | B44: 127 | C44: 23.52 | D44: 7/16” | E44: 11.11 | F44: 26.96 | G44: 416.68 | H44: 45.71 | I44: 3.93 | J44: 2.5 | K44: 3.58
A45: 5” x 24,1 | B45: 127 | C45: 24.1 | D45: 1/2” | E45: 12.7 | F45: 30.64 | G45: 470 | H45: 52.5 | I45: 3.91 | J45: 2.49 | K45: 3.63
A46: 5” x 29,8 | B46: 127 | C46: 29.8 | D46: 5/8” | E46: 15.88 | F46: 37.8 | G46: 566 | H46: 64 | I46: 3.86 | J46: 2.46 | K46: 3.76
A47: 6” x 22,2 | B47: 152.4 | C47: 22.2 | D47: 3/8” | E47: 9.52 | F47: 28.1 | G47: 641 | H47: 57.4 | I47: 4.78 | J47: 3.02 | K47: 4.17
A48: 6” x 29,2 | B48: 152.4 | C48: 29.2 | D48: 1/2” | E48: 12.7 | F48: 37.09 | G48: 828 | H48: 75.4 | I48: 4.72 | J48: 3 | K48: 4.27
A49: 6” x 36 | B49: 152.4 | C49: 36 | D49: 5/8” | E49: 15.88 | F49: 45.86 | G49: 1007 | H49: 93.5 | I49: 4.67 | J49: 2.97 | K49: 4.39
A50: 6” x 42,7 | B50: 152.4 | C50: 42.7 | D50: 3/4” | E50: 19.05 | F50: 54.44 | G50: 1173 | H50: 109.9 | I50: 4.65 | J50: 2.97 | K50: 4.52
A51: 8” x 48,7 | B51: 203.2 | C51: 48.7 | D51: 5/8” | E51: 15.88 | F51: 62.9 | G51: 2472.4 | H51: 168.9 | I51: 6.31 | J51: 4.01 | K51: 5.66
A52: 8” x 57,9 | B52: 203.2 | C52: 57.9 | D52: 3/4” | E52: 19.05 | F52: 73.81 | G52: 2901.1 | H52: 199.9 | I52: 6.27 | J52: 3.99 | K52: 5.79

Sheet Compressão
A1: Verificação à Flambagem na Compressão
A2: Esbeltez da mesa (AL):
A3: b/t= | B3: =b/t -> 8
A4: b/tlim= | B4: =0.45*SQRT(E/fy) -> 12.72792206 | C4: =IF(B3<=B4, "Ok!","Qs<1") -> Ok!
A5: Q=Qs= | B5: =IF(B3<=B4, 1,IF(B3<=(0.91*SQRT(E/fy)),1.34-0.76*b/t*SQRT(fy/E),0.53*E/fy/((b/t)^2))) -> 1
A8: Forças axiais elásticas
B9: Dupla
A10: Nex= | B10: =ROUND(PI()^2*E*(2*Ix)/(Kx*Lx)^2/100000,3) -> 100.067 | C10: kN
B11: Simples
A12: Nez= | B12: =IF(Lx_1/rx<=80,ROUND(PI()^2*E*Ix/(0.72*rx+0.75*Lx_1)^2/100000,3),ROUND(PI()^2*E*Ix/(0.32*rx+1.25*Lx_1)^2/100000,3)) -> 49.94 | C12: kN
A14: Esbeltez reduzida
B15: Dupla
A16: l0= | B16: =ROUND(SQRT(0.1*Q*(2*Area)*fy/B10),3) -> 1.74
B17: Simples
A18: l0= | B18: =ROUND(SQRT(0.1*Q*Area*fy/B12),3) -> 1.742
A20: Fator de Redução - Resist. à Compressão
B21: Dupla
A22: c= | B22: =ROUND(IF(B16<=1.5,0.658^(B16^2),0.877/(B16^2)),3) -> 0.29
B23: Simples
A24: c= | B24: =ROUND(IF(B18<=1.5,0.658^(B18^2),0.877/(B18^2)),3) -> 0.289
A26: Força Axial Resistente de Cálculo
B27: Dupla
A28: NRd= | B28: =0.1*qsi*Q*(2*Area)*fy/gama_a1 -> 79.88181818 | C28: kN
B29: Simples
A30: NRd= | B30: =ROUND(0.1*qsi_1*Q*Area*fy/gama_a1,5) -> 39.80318 | C30: kN

Sheet fy
A1: Propriedades Mecânicas | B1: Limite de Escoamento (MPa) | C1: Limite de Resistência (MPa) | D1: Alongamento após ruptura,% (lo=200mm)
A2: MR 250 | B2: 250 | C2: 400 | D2: 18
A3: ASTM A 572 Grau 50 | B3: 345 | C3: 450 | D3: 18
A4: AÇO COR 500 | B4: 370 | C4: 500
